Workbook

Sheet Expences2024
B1: =SUBTOTAL(109,Tableau1[Amount]) -> 21233
A2: Date | B2: Amount | C2: Reason | D2: Currency | E2: Method of payment | G2: Virements: | H2: =SUMIF(Tableau1[Method of payment],"Bank Payment",Tableau1[Amount]) -> 7941 | I2: =H2/$H$5 -> 0.3739933123
A3: 2024-01-01 | B3: 256 | C3: Electricité | D3: CHF | E3: Bank Payment | G3: Carte de crédit: | H3: =SUMIF(Tableau1[Method of payment],"Credit Card",Tableau1[Amount]) -> 7379 | I3: =H3/$H$5 -> 0.3475250789
A4: 2024-01-03 | B4: 54 | C4: Frais d'hotel | D4: CHF | E4: Credit Card | G4: Cash:: | H4: =SUMIF(Tableau1[Method of payment],"Cash",Tableau1[Amount]) -> 5913 | I4: 0.2784816088
A5: 2024-01-04 | B5: 621 | C5: Primes d'assurance | D5: CHF | E5: Bank Payment | G5: Totals: | H5: =SUM(H2:H4) -> 21233
A6: 2024-01-03 | B6: 1376 | C6: Voyage d'affaire | D6: CHF | E6: Bank Payment | G6: Type de Frais | H6: Montant | I6: P%
A7: 2024-01-02 | B7: 754 | C7: Frais de téléphone | D7: CHF | E7: Cash | G7: Chauffage | H7: =SUMIF(Tableau1[Reason],G7,Tableau1[Amount]) -> 0 | I7: =H7/$H$27 -> 0
A8: 2024-01-12 | B8: 1962 | C8: Voyage d'affaire | D8: CHF | E8: Bank Payment | G8: Eau | H8: =SUMIF(Tableau1[Reason],G8,Tableau1[Amount]) -> 0 | I8: =H8/$H$27 -> 0
A9: 2024-01-09 | B9: 276 | C9: Location de voiture | D9: CHF | E9: Credit Card | G9: Electricité | H9: =SUMIF(Tableau1[Reason],G9,Tableau1[Amount]) -> 256 | I9: 0.01205670419
A10: 2024-01-07 | B10: 835 | C10: Location de voiture | D10: CHF | E10: Credit Card | G10: Frais de restaurant | H10: =SUMIF(Tableau1[Reason],G10,Tableau1[Amount]) -> 0 | I10: 0
A11: 2024-01-10 | B11: 125 | C11: Frais de téléphone | D11: CHF | E11: Cash | G11: Frais de téléphone | H11: =SUMIF(Tableau1[Reason],G11,Tableau1[Amount]) -> 879 | I11: 0.04139782414
A12: 2024-01-15 | B12: 2261 | C12: Voyage d'affaire | D12: CHF | E12: Bank Payment | G12: Frais d'entretien | H12: =SUMIF(Tableau1[Reason],G12,Tableau1[Amount]) -> 728 | I12: 0.03428625253
A13: 2024-01-16 | B13: 1287 | C13: Location de voiture | D13: CHF | E13: Cash | G13: Frais d'hotel | H13: =SUMIF(Tableau1[Reason],G13,Tableau1[Amount]) -> 1519 | I13: 0.07153958461
A14: 2024-01-15 | B14: 1852 | C14: Voyage d'affaire | D14: CHF | E14: Credit Card | G14: Gaz | H14: =SUMIF(Tableau1[Reason],G14,Tableau1[Amount]) -> 0 | I14: 0
A15: 2024-01-19 | B15: 1465 | C15: Frais d'hotel | D15: CHF | E15: Bank Payment | G15: Honoraires d'avocats | H15: =SUMIF(Tableau1[Reason],G15,Tableau1[Amount]) -> 0 | I15: 0
A16: 2024-01-10 | B16: 728 | C16: Frais d'entretien | D16: CHF | E16: Cash | G16: Location de voiture | H16: =SUMIF(Tableau1[Reason],G16,Tableau1[Amount]) -> 2398 | I16: 0.1129374088
A17: 2024-01-22 | B17: 2784 | C17: Events | D17: CHF | E17: Cash | G17: Mobilier | H17: =SUMIF(Tableau1[Reason],G17,Tableau1[Amount]) -> 0 | I17: 0
A18: 2024-01-02 | B18: 4362 | C18: Events | D18: CHF | E18: Credit Card | G18: Papeterie | H18: =SUMIF(Tableau1[Reason],G18,Tableau1[Amount]) -> 0 | I18: 0
A19: 2024-02-09 | B19: 235 | C19: Taxi | D19: CHF | E19: Cash | G19: Part de loyer | H19: =SUMIF(Tableau1[Reason],G19,Tableau1[Amount]) -> 0 | I19: 0
G20: Primes d'assurance | H20: =SUMIF(Tableau1[Reason],G20,Tableau1[Amount]) -> 621 | I20: 0.02924692695
G21: Rénovation | H21: =SUMIF(Tableau1[Reason],G21,Tableau1[Amount]) -> 0 | I21: 0
G22: Vêtements professionnels | H22: =SUMIF(Tableau1[Reason],G22,Tableau1[Amount]) -> 0 | I22: 0
G23: Voiture de fonction | H23: =SUMIF(Tableau1[Reason],G23,Tableau1[Amount]) -> 0 | I23: 0
G24: Voyage d'affaire | H24: =SUMIF(Tableau1[Reason],G24,Tableau1[Amount]) -> 7451 | I24: 0.3509160269
G25: Events | H25: =SUMIF(Tableau1[Reason],G25,Tableau1[Amount]) -> 7146 | I25: 0.3365515942
G26: Taxi | H26: =SUMIF(Tableau1[Reason],G26,Tableau1[Amount]) -> 235 | I26: 0.01106767767
G27: Total: | H27: =SUM(Tableau3[Montant]) -> 21233

Sheet Type de Frais
A1: Frais
A2: Chauffage
A3: Eau
A4: Electricité
A5: Frais de restaurant
A6: Frais de téléphone
A7: Frais d'entretien
A8: Frais d'hotel
A9: Gaz
A10: Honoraires d'avocats
A11: Location de voiture
A12: Mobilier
A13: Papeterie
A14: Part de loyer
A15: Primes d'assurance
A16: Rénovation
A17: Vêtements professionnels
A18: Voiture de fonction
A19: Voyage d'affaire
A20: Events
A21: Taxi
A22: Others
A23: Pharmacie
A24: Hospitals
A25: Laboratorie
A26: Supplement
